[Event "Betsys MČR v online bleskovém šachu 2021"]
[Site "Chess.com"]
[Date "2021.04.17"]
[Round "9"]
[White "Bohous13"]
[Black "Evca64"]
[Result "1-0"]
[WhiteElo "2217"]
[BlackElo "2065"]
[TimeControl "180+1"]
[EndTime "10:32:26 PDT"]
[Termination "Uživatel Bohous13 zvítězil po vzdání soupeře"]

1. e4 {[%clk 0:03:00.9]} 1... c6 {[%clk 0:02:59.8]} 2. d4 {[%clk 0:03:00.7]}
2... d5 {[%clk 0:03:00]} 3. exd5 {[%clk 0:03:01.3]} 3... cxd5 {[%clk 0:03:00.2]}
4. Bd3 {[%clk 0:03:01.9]} 4... Nc6 {[%clk 0:02:59.7]} 5. Nf3 {[%clk 0:03:01.7]}
5... Qc7 {[%clk 0:02:56.8]} 6. c3 {[%clk 0:02:57]} 6... Bg4 {[%clk 0:02:56.1]}
7. O-O {[%clk 0:02:53.4]} 7... e6 {[%clk 0:02:56.1]} 8. Nbd2 {[%clk 0:02:47.7]}
8... Bd6 {[%clk 0:02:55.7]} 9. h3 {[%clk 0:02:46.9]} 9... Bh5 {[%clk 0:02:55.9]}
10. Re1 {[%clk 0:02:47]} 10... Nf6 {[%clk 0:02:53.7]} 11. Nf1 {[%clk 0:02:43.5]}
11... Bg6 {[%clk 0:02:52.5]} 12. Bg5 {[%clk 0:02:38.6]} 12... Ne4 {[%clk
0:02:45]} 13. Be3 {[%clk 0:02:35.4]} 13... O-O {[%clk 0:02:42.4]} 14. Nh4 {[%clk
0:02:32.4]} 14... Nf6 {[%clk 0:02:27.2]} 15. Nxg6 {[%clk 0:02:31.5]} 15... hxg6
{[%clk 0:02:26.9]} 16. Nd2 {[%clk 0:02:28.1]} 16... Rab8 {[%clk 0:02:25.3]} 17.
Bg5 {[%clk 0:02:25.5]} 17... b5 {[%clk 0:02:22.9]} 18. b4 {[%clk 0:02:20.3]}
18... Ne7 {[%clk 0:02:18.3]} 19. Bxf6 {[%clk 0:02:18.9]} 19... gxf6 {[%clk
0:02:17.6]} 20. Rc1 {[%clk 0:02:18.8]} 20... f5 {[%clk 0:02:03.8]} 21. Nb3
{[%clk 0:02:15.9]} 21... Kg7 {[%clk 0:01:46.6]} 22. Qf3 {[%clk 0:02:04]} 22...
Ng8 {[%clk 0:01:41.8]} 23. Nc5 {[%clk 0:02:02.1]} 23... Bxc5 {[%clk 0:01:41.3]}
24. bxc5 {[%clk 0:02:00.6]} 24... Nf6 {[%clk 0:01:39.9]} 25. Qe3 {[%clk
0:01:53.2]} 25... Ne4 {[%clk 0:01:36]} 26. Bxe4 {[%clk 0:01:44.8]} 26... fxe4
{[%clk 0:01:34.8]} 27. Rb1 {[%clk 0:01:43.3]} 27... a6 {[%clk 0:01:33.5]} 28.
Rb3 {[%clk 0:01:40.7]} 28... f5 {[%clk 0:01:31.6]} 29. f4 {[%clk 0:01:24.6]}
29... Kf6 {[%clk 0:01:19]} 30. Qg3 {[%clk 0:01:22]} 30... Rh8 {[%clk 0:01:17.5]}
31. Reb1 {[%clk 0:01:18.3]} 31... Kf7 {[%clk 0:01:03.9]} 32. Qg5 {[%clk
0:01:04.5]} 32... Rh5 {[%clk 0:00:58.2]} 33. Qg3 {[%clk 0:01:04.2]} 33... g5
{[%clk 0:00:56.8]} 34. Rf1 {[%clk 0:00:57.6]} 34... Rg8 {[%clk 0:00:47.5]} 35.
a4 {[%clk 0:00:43.9]} 35... bxa4 {[%clk 0:00:42.8]} 36. Rb6 {[%clk 0:00:42.5]}
36... gxf4 {[%clk 0:00:36.4]} 37. Qxf4 {[%clk 0:00:42.1]} 37... Qxf4 {[%clk
0:00:35]} 38. Rxf4 {[%clk 0:00:42.1]} 38... Rhg5 {[%clk 0:00:33.3]} 39. Rf2
{[%clk 0:00:36.7]} 39... Rg3 {[%clk 0:00:32.9]} 40. Rc2 {[%clk 0:00:21.6]} 40...
Ra8 {[%clk 0:00:30]} 41. Kf2 {[%clk 0:00:18.7]} 41... Rd3 {[%clk 0:00:28.3]} 42.
Rb7+ {[%clk 0:00:10.9]} 42... Kf6 {[%clk 0:00:27.8]} 43. c6 {[%clk 0:00:10.9]}
43... Rc8 {[%clk 0:00:27.3]} 44. c7 {[%clk 0:00:10.6]} 44... f4 {[%clk
0:00:26.6]} 45. Ra7 {[%clk 0:00:09.3]} 45... Kf5 {[%clk 0:00:25.4]} 46. h4
{[%clk 0:00:07.3]} 46... f3 {[%clk 0:00:20.6]} 47. gxf3 {[%clk 0:00:06.8]} 47...
Rxf3+ {[%clk 0:00:20.6]} 48. Kg2 {[%clk 0:00:04.1]} 48... Rd3 {[%clk 0:00:20.2]}
49. h5 {[%clk 0:00:03.3]} 49... e3 {[%clk 0:00:19.1]} 50. Kf3 {[%clk 0:00:02.6]}
50... Rd2 {[%clk 0:00:19]} 51. Rxd2 {[%clk 0:00:01.9]} 51... exd2 {[%clk
0:00:19]} 52. Ke2 {[%clk 0:00:02.6]} 52... Kg5 {[%clk 0:00:19.3]} 53. Kxd2
{[%clk 0:00:02.6]} 53... Kxh5 {[%clk 0:00:19.8]} 54. Rxa6 {[%clk 0:00:02.9]}
54... Rxc7 {[%clk 0:00:19.3]} 55. Rxe6 {[%clk 0:00:03.2]} 55... Ra7 {[%clk
0:00:18.7]} 56. Re5+ {[%clk 0:00:03.4]} 56... Kg4 {[%clk 0:00:18.6]} 57. Kc2
{[%clk 0:00:03.5]} 57... Ra5 {[%clk 0:00:17.9]} 58. Kb2 {[%clk 0:00:03.5]} 58...
Kf4 {[%clk 0:00:18]} 59. Ka3 {[%clk 0:00:03.8]} 59... Ra8 {[%clk 0:00:16.6]} 60.
Rxd5 {[%clk 0:00:03.6]} 60... Ke4 {[%clk 0:00:16.9]} 61. Rc5 {[%clk 0:00:04.2]}
61... Kd3 {[%clk 0:00:16.6]} 62. Rc7 {[%clk 0:00:04.2]} 62... Ra6 {[%clk
0:00:15.7]} 63. d5 {[%clk 0:00:04.2]} 63... Ke4 {[%clk 0:00:15.4]} 64. c4 {[%clk
0:00:04.5]} 64... Kd4 {[%clk 0:00:15.5]} 65. Rc6 {[%clk 0:00:04.5]} 65... Ra8
{[%clk 0:00:14.8]} 66. d6 {[%clk 0:00:04.8]} 66... Ke5 {[%clk 0:00:14.7]} 67. c5
{[%clk 0:00:04.4]} 67... Ke6 {[%clk 0:00:14.9]} 68. Rc7 {[%clk 0:00:04.5]} 68...
Ra6 {[%clk 0:00:14]} 69. Rc8 {[%clk 0:00:03.4]} 69... Ra7 {[%clk 0:00:13.7]} 70.
Re8+ {[%clk 0:00:03.1]} 70... Kd5 {[%clk 0:00:13.3]} 71. Rc8 {[%clk 0:00:02.8]}
71... Ke6 {[%clk 0:00:13.3]} 72. Rc6 {[%clk 0:00:02.1]} 72... Kd5 {[%clk
0:00:12.9]} 73. Rc7 {[%clk 0:00:02.2]} 73... Ra8 {[%clk 0:00:12.2]} 74. d7
{[%clk 0:00:02.6]} 74... Rd8 {[%clk 0:00:11]} 75. c6 {[%clk 0:00:02.3]} 75...
Kd6 {[%clk 0:00:11]} 76. Rc8 {[%clk 0:00:02.7]} 76... Ke7 {[%clk 0:00:10.3]} 77.
Rxd8 {[%clk 0:00:02.6]} 77... Kxd8 {[%clk 0:00:10.6]} 78. Kxa4 {[%clk
0:00:02.7]} 1-0

[Event "Betsys MČR v online bleskovém šachu 2021"]
[Site "Chess.com"]
[Date "2021.04.17"]
[Round "9"]
[White "fm_magua"]
[Black "fadamos"]
[Result "1-0"]
[WhiteElo "2521"]
[BlackElo "2296"]
[TimeControl "180+1"]
[EndTime "10:32:57 PDT"]
[Termination "Uživatel fm_magua zvítězil matem"]

1. e4 {[%clk 0:03:00.9]} 1... e5 {[%clk 0:02:59.6]} 2. Nf3 {[%clk 0:03:00.7]}
2... Nc6 {[%clk 0:02:59.8]} 3. Bb5 {[%clk 0:03:00.9]} 3... a6 {[%clk 0:02:59]}
4. Ba4 {[%clk 0:03:01.2]} 4... Nf6 {[%clk 0:02:59.1]} 5. d4 {[%clk 0:03:01.8]}
5... Nxd4 {[%clk 0:02:45.8]} 6. Nxe5 {[%clk 0:03:01.3]} 6... Nc6 {[%clk
0:02:37.8]} 7. Nf3 {[%clk 0:02:55.5]} 7... Bc5 {[%clk 0:02:30.1]} 8. O-O {[%clk
0:02:55.5]} 8... O-O {[%clk 0:02:20.3]} 9. e5 {[%clk 0:02:55.1]} 9... Ne8 {[%clk
0:02:11]} 10. c3 {[%clk 0:02:52.5]} 10... d6 {[%clk 0:02:06]} 11. exd6 {[%clk
0:02:42.8]} 11... Qxd6 {[%clk 0:02:05.7]} 12. Qxd6 {[%clk 0:02:41.9]} 12... Nxd6
{[%clk 0:02:05]} 13. Bxc6 {[%clk 0:02:42]} 13... bxc6 {[%clk 0:02:05.2]} 14.
Nbd2 {[%clk 0:02:42.1]} 14... Bf5 {[%clk 0:02:02.1]} 15. Nb3 {[%clk 0:02:39.8]}
15... Bb6 {[%clk 0:02:01.5]} 16. Nfd4 {[%clk 0:02:39.8]} 16... Bd7 {[%clk
0:01:52.4]} 17. Be3 {[%clk 0:02:38.8]} 17... Nc4 {[%clk 0:01:47.7]} 18. Bc1
{[%clk 0:02:16.3]} 18... Rfe8 {[%clk 0:01:47]} 19. Nd2 {[%clk 0:02:14.9]} 19...
Nd6 {[%clk 0:01:45.2]} 20. N2f3 {[%clk 0:02:12]} 20... c5 {[%clk 0:01:41.9]} 21.
Nb3 {[%clk 0:02:11.8]} 21... Re2 {[%clk 0:01:40.7]} 22. Be3 {[%clk 0:02:06.8]}
22... c4 {[%clk 0:01:40.6]} 23. Bxb6 {[%clk 0:02:01.5]} 23... cxb3 {[%clk
0:01:40.7]} 24. Bxc7 {[%clk 0:01:52.8]} 24... Nb5 {[%clk 0:01:40.7]} 25. Bf4
{[%clk 0:01:49.5]} 25... Rxb2 {[%clk 0:01:39.6]} 26. axb3 {[%clk 0:01:49.5]}
26... Nxc3 {[%clk 0:01:31.9]} 27. Be5 {[%clk 0:01:43.7]} 27... Rxb3 {[%clk
0:01:25.4]} 28. Nd4 {[%clk 0:01:44]} 28... Rb4 {[%clk 0:01:17.7]} 29. Rfc1
{[%clk 0:01:39.3]} 29... Nd5 {[%clk 0:01:09.6]} 30. Nc6 {[%clk 0:01:34.2]} 30...
Re4 {[%clk 0:01:01.9]} 31. f3 {[%clk 0:01:27]} 31... Re2 {[%clk 0:01:01.7]} 32.
Kf1 {[%clk 0:01:24.4]} 32... Rd2 {[%clk 0:00:58.1]} 33. Bg3 {[%clk 0:01:21.6]}
33... Ne3+ {[%clk 0:00:46.7]} 34. Kg1 {[%clk 0:01:19.9]} 34... Rxg2+ {[%clk
0:00:44.5]} 35. Kh1 {[%clk 0:01:20.3]} 35... Rd2 {[%clk 0:00:32.9]} 36. Bf4
{[%clk 0:01:14.1]} 36... Re2 {[%clk 0:00:29.1]} 37. Nd4 {[%clk 0:01:12.8]} 37...
Rf2 {[%clk 0:00:21.7]} 38. Bxe3 {[%clk 0:01:12.7]} 38... Rb2 {[%clk 0:00:22]}
39. Nc6 {[%clk 0:01:05.1]} 39... h6 {[%clk 0:00:19]} 40. Ne5 {[%clk 0:01:04.8]}
40... Bh3 {[%clk 0:00:18.7]} 41. Nd3 {[%clk 0:00:59.2]} 41... Re2 {[%clk
0:00:17.7]} 42. Re1 {[%clk 0:00:56.5]} 42... Bg2+ {[%clk 0:00:16]} 43. Kg1
{[%clk 0:00:56.2]} 43... Bxf3 {[%clk 0:00:16.9]} 44. Nc5 {[%clk 0:00:50.8]}
44... Re8 {[%clk 0:00:15.5]} 45. Rxe2 {[%clk 0:00:50.4]} 45... Bxe2 {[%clk
0:00:16.4]} 46. Kf2 {[%clk 0:00:50.9]} 46... Bb5 {[%clk 0:00:16.7]} 47. Ra2
{[%clk 0:00:43]} 47... Kh7 {[%clk 0:00:13.2]} 48. Nxa6 {[%clk 0:00:41.4]} 48...
Re6 {[%clk 0:00:10.2]} 49. Nc5 {[%clk 0:00:39.7]} 49... Rd6 {[%clk 0:00:09.8]}
50. Ne4 {[%clk 0:00:39.5]} 50... Re6 {[%clk 0:00:09.7]} 51. Ng3 {[%clk 0:00:39]}
51... Bd3 {[%clk 0:00:09.1]} 52. Ra7 {[%clk 0:00:38.8]} 52... Rf6+ {[%clk
0:00:09.5]} 53. Ke1 {[%clk 0:00:38.7]} 53... Bc4 {[%clk 0:00:09.9]} 54. Kd2
{[%clk 0:00:37.9]} 54... Rd6+ {[%clk 0:00:09.9]} 55. Kc3 {[%clk 0:00:33.8]}
55... Be6 {[%clk 0:00:10.5]} 56. Bd4 {[%clk 0:00:33.5]} 56... Rc6+ {[%clk
0:00:10.7]} 57. Kd2 {[%clk 0:00:33.6]} 57... Kg6 {[%clk 0:00:11.3]} 58. Ke3
{[%clk 0:00:33.4]} 58... Rc1 {[%clk 0:00:11]} 59. Ne2 {[%clk 0:00:31.6]} 59...
Rh1 {[%clk 0:00:10.8]} 60. Be5 {[%clk 0:00:31.6]} 60... Rb1 {[%clk 0:00:10.1]}
61. Bg3 {[%clk 0:00:30.6]} 61... Kh7 {[%clk 0:00:08.7]} 62. Nd4 {[%clk
0:00:29.6]} 62... Bd5 {[%clk 0:00:07.6]} 63. Nf5 {[%clk 0:00:27]} 63... Be6
{[%clk 0:00:06.2]} 64. Nd6 {[%clk 0:00:26.1]} 64... Rb3+ {[%clk 0:00:05.3]} 65.
Kd2 {[%clk 0:00:25.4]} 65... Rb2+ {[%clk 0:00:05.5]} 66. Kc3 {[%clk 0:00:25.3]}
66... Re2 {[%clk 0:00:06.1]} 67. Nxf7 {[%clk 0:00:24]} 67... Bxf7 {[%clk
0:00:04.7]} 68. Rxf7 {[%clk 0:00:23.6]} 68... Ra2 {[%clk 0:00:05.3]} 69. Be5
{[%clk 0:00:22.3]} 69... Kg6 {[%clk 0:00:05.1]} 70. Rxg7+ {[%clk 0:00:22.3]}
70... Kh5 {[%clk 0:00:05.7]} 71. Rd7 {[%clk 0:00:16.6]} 71... Ra3+ {[%clk
0:00:05.6]} 72. Kb4 {[%clk 0:00:16.5]} 72... Ra2 {[%clk 0:00:04.9]} 73. Bg3
{[%clk 0:00:16.6]} 73... Kg5 {[%clk 0:00:04.3]} 74. Rd5+ {[%clk 0:00:16.6]}
74... Kg4 {[%clk 0:00:04.2]} 75. Rd4+ {[%clk 0:00:15.6]} 75... Kg5 {[%clk
0:00:04.4]} 76. Kc3 {[%clk 0:00:15.5]} 76... h5 {[%clk 0:00:04.5]} 77. Kd3
{[%clk 0:00:14.9]} 77... Ra8 {[%clk 0:00:03.5]} 78. Ke3 {[%clk 0:00:15.2]} 78...
Re8+ {[%clk 0:00:03.4]} 79. Kf3 {[%clk 0:00:15.4]} 79... Ra8 {[%clk 0:00:03.9]}
80. Bf4+ {[%clk 0:00:15.2]} 80... Kg6 {[%clk 0:00:04.4]} 81. Rd6+ {[%clk
0:00:14.4]} 81... Kf5 {[%clk 0:00:04.7]} 82. Rd5+ {[%clk 0:00:14.8]} 82... Kg6
{[%clk 0:00:05.2]} 83. Rg5+ {[%clk 0:00:14.7]} 83... Kf6 {[%clk 0:00:05.9]} 84.
Rxh5 {[%clk 0:00:14.8]} 84... Ra3+ {[%clk 0:00:06.8]} 85. Kg4 {[%clk 0:00:15.1]}
85... Ra1 {[%clk 0:00:07.1]} 86. Rh6+ {[%clk 0:00:15.4]} 86... Kf7 {[%clk
0:00:06.9]} 87. Rb6 {[%clk 0:00:15.4]} 87... Ra5 {[%clk 0:00:07.1]} 88. h4
{[%clk 0:00:15.2]} 88... Ra1 {[%clk 0:00:07]} 89. Kf5 {[%clk 0:00:15.2]} 89...
Ra5+ {[%clk 0:00:06.1]} 90. Be5 {[%clk 0:00:15.2]} 90... Ra2 {[%clk 0:00:07]}
91. Rb7+ {[%clk 0:00:15.3]} 91... Kg8 {[%clk 0:00:07]} 92. h5 {[%clk 0:00:10.3]}
92... Rf2+ {[%clk 0:00:07.1]} 93. Ke6 {[%clk 0:00:10.5]} 93... Ra2 {[%clk
0:00:07.1]} 94. Rb8+ {[%clk 0:00:09.4]} 94... Kh7 {[%clk 0:00:07.2]} 95. Rh8#
{[%clk 0:00:10.3]} 1-0

[Event "Betsys MČR v online bleskovém šachu 2021"]
[Site "Chess.com"]
[Date "2021.04.17"]
[Round "9"]
[White "mysacek1414"]
[Black "Qb1xh8"]
[Result "1-0"]
[WhiteElo "1905"]
[BlackElo "2094"]
[TimeControl "180+1"]
[EndTime "10:33:01 PDT"]
[Termination "Uživatel mysacek1414 zvítězil matem"]

1. e4 {[%clk 0:03:00.9]} 1... c6 {[%clk 0:02:58.9]} 2. d4 {[%clk 0:02:59.9]}
2... d5 {[%clk 0:02:59]} 3. Nc3 {[%clk 0:03:00.5]} 3... dxe4 {[%clk 0:02:57.8]}
4. Nxe4 {[%clk 0:03:01.4]} 4... Bf5 {[%clk 0:02:57.1]} 5. Ng3 {[%clk 0:03:01.9]}
5... Bg6 {[%clk 0:02:57.4]} 6. Nh3 {[%clk 0:03:02.5]} 6... Nd7 {[%clk
0:02:49.8]} 7. Nf4 {[%clk 0:03:02.6]} 7... e5 {[%clk 0:02:46.8]} 8. Nxg6 {[%clk
0:02:47.6]} 8... hxg6 {[%clk 0:02:47.7]} 9. Bc4 {[%clk 0:02:45.6]} 9... Nb6
{[%clk 0:02:38.3]} 10. Bb3 {[%clk 0:02:39.3]} 10... Qxd4 {[%clk 0:02:37.7]} 11.
Qxd4 {[%clk 0:02:15.6]} 11... exd4 {[%clk 0:02:36.8]} 12. O-O {[%clk 0:02:16.5]}
12... Nf6 {[%clk 0:02:24.9]} 13. Bg5 {[%clk 0:02:12.4]} 13... Be7 {[%clk
0:02:18.4]} 14. Rad1 {[%clk 0:02:10]} 14... c5 {[%clk 0:02:17.6]} 15. a4 {[%clk
0:02:08.9]} 15... Rd8 {[%clk 0:01:56.3]} 16. a5 {[%clk 0:02:06.2]} 16... Nbd5
{[%clk 0:01:56.3]} 17. Rfe1 {[%clk 0:02:03.5]} 17... Kf8 {[%clk 0:01:56.2]} 18.
Bc4 {[%clk 0:01:44.1]} 18... Nh5 {[%clk 0:01:22.5]} 19. Bxd5 {[%clk 0:01:38]}
19... Bxg5 {[%clk 0:01:22.1]} 20. Bxb7 {[%clk 0:01:37.9]} 20... Nf4 {[%clk
0:01:12.4]} 21. Ne4 {[%clk 0:01:35.7]} 21... Be7 {[%clk 0:01:11.7]} 22. Nd2
{[%clk 0:01:33.7]} 22... Bd6 {[%clk 0:01:08.5]} 23. Nc4 {[%clk 0:01:31.1]} 23...
Bc7 {[%clk 0:01:08.3]} 24. a6 {[%clk 0:01:29.8]} 24... Ne6 {[%clk 0:01:08.3]}
25. Re4 {[%clk 0:01:15.6]} 25... Bxh2+ {[%clk 0:01:07.4]} 26. Kf1 {[%clk
0:01:14.6]} 26... Bc7 {[%clk 0:01:08.3]} 27. g3 {[%clk 0:01:14.7]} 27... Ng5
{[%clk 0:01:05.4]} 28. Rg4 {[%clk 0:00:53.1]} 28... f6 {[%clk 0:01:04.2]} 29.
Kg2 {[%clk 0:00:49.5]} 29... Kf7 {[%clk 0:01:01.7]} 30. b3 {[%clk 0:00:47.3]}
30... Rh5 {[%clk 0:00:59.5]} 31. Rh4 {[%clk 0:00:39.1]} 31... Rdh8 {[%clk
0:00:59.2]} 32. Rxh5 {[%clk 0:00:38.7]} 32... gxh5 {[%clk 0:01:00.1]} 33. Na3
{[%clk 0:00:37.5]} 33... h4 {[%clk 0:00:59.2]} 34. Nb5 {[%clk 0:00:35.9]} 34...
Bb8 {[%clk 0:00:58.3]} 35. b4 {[%clk 0:00:34.2]} 35... hxg3 {[%clk 0:00:56.6]}
36. fxg3 {[%clk 0:00:34]} 36... Rh3 {[%clk 0:00:57.1]} 37. Rd3 {[%clk
0:00:33.9]} 37... c4 {[%clk 0:00:55.8]} 38. Rxd4 {[%clk 0:00:34.2]} 38... Rxg3+
{[%clk 0:00:55.9]} 39. Kf2 {[%clk 0:00:34.7]} 39... Nh3+ {[%clk 0:00:54.5]} 40.
Ke2 {[%clk 0:00:33]} 40... Rg2+ {[%clk 0:00:52.2]} 41. Kd1 {[%clk 0:00:27.9]}
41... Rg1+ {[%clk 0:00:47.2]} 42. Kd2 {[%clk 0:00:26]} 42... Bf4+ {[%clk
0:00:46]} 43. Kc3 {[%clk 0:00:22.7]} 43... Rg3+ {[%clk 0:00:45.2]} 44. Kxc4
{[%clk 0:00:21.7]} 44... Be5 {[%clk 0:00:43.7]} 45. Rd7+ {[%clk 0:00:19.3]}
45... Ke8 {[%clk 0:00:42]} 46. Bc6 {[%clk 0:00:19.1]} 46... Kf8 {[%clk 0:00:41]}
47. Rxa7 {[%clk 0:00:17.9]} 47... Nf2 {[%clk 0:00:39.5]} 48. Ra8+ {[%clk
0:00:16]} 48... Ke7 {[%clk 0:00:39.4]} 49. Ra7+ {[%clk 0:00:14.7]} 49... Kd8
{[%clk 0:00:34.1]} 50. Ra8+ {[%clk 0:00:14.7]} 50... Ke7 {[%clk 0:00:34.2]} 51.
a7 {[%clk 0:00:14.6]} 51... Rg4+ {[%clk 0:00:31.8]} 52. Kb3 {[%clk 0:00:14.2]}
52... Rg3+ {[%clk 0:00:26.1]} 53. Ka4 {[%clk 0:00:14.3]} 53... Rg1 {[%clk
0:00:16.9]} 54. Re8+ {[%clk 0:00:14.2]} 54... Kf7 {[%clk 0:00:17.2]} 55. a8=Q
{[%clk 0:00:13.9]} 55... Ra1+ {[%clk 0:00:17.6]} 56. Kb3 {[%clk 0:00:14.3]}
56... Rxa8 {[%clk 0:00:17.6]} 57. Rxa8 {[%clk 0:00:15.2]} 57... Nd1 {[%clk
0:00:18.1]} 58. Bd5+ {[%clk 0:00:12.9]} 58... Kg6 {[%clk 0:00:17.6]} 59. Rg8
{[%clk 0:00:12.6]} 59... Ne3 {[%clk 0:00:18.5]} 60. Be4+ {[%clk 0:00:12]} 60...
Kf7 {[%clk 0:00:18.6]} 61. Rc8 {[%clk 0:00:10.4]} 61... f5 {[%clk 0:00:18.7]}
62. Bd5+ {[%clk 0:00:09.2]} 62... Kf6 {[%clk 0:00:18.6]} 63. Bf3 {[%clk
0:00:07.7]} 63... g5 {[%clk 0:00:17.9]} 64. c4 {[%clk 0:00:08]} 64... g4 {[%clk
0:00:17.8]} 65. Bxg4 {[%clk 0:00:08]} 65... fxg4 {[%clk 0:00:17.5]} 66. Rg8
{[%clk 0:00:08.2]} 66... Kf5 {[%clk 0:00:15]} 67. c5 {[%clk 0:00:08]} 67... g3
{[%clk 0:00:13.8]} 68. c6 {[%clk 0:00:08.2]} 68... Ke6 {[%clk 0:00:13.9]} 69. c7
{[%clk 0:00:08]} 69... Bxc7 {[%clk 0:00:12.9]} 70. Nxc7+ {[%clk 0:00:08.4]}
70... Kd7 {[%clk 0:00:12.9]} 71. Rxg3 {[%clk 0:00:07.2]} 71... Nf5 {[%clk
0:00:13.1]} 72. Rg5 {[%clk 0:00:06.7]} 72... Nd4+ {[%clk 0:00:12.5]} 73. Kc4
{[%clk 0:00:07]} 73... Nf3 {[%clk 0:00:11.8]} 74. Rg7+ {[%clk 0:00:06]} 74...
Kc6 {[%clk 0:00:12]} 75. Ne6 {[%clk 0:00:05.4]} 75... Ne5+ {[%clk 0:00:11.4]}
76. Kd4 {[%clk 0:00:04.9]} 76... Nf3+ {[%clk 0:00:11.4]} 77. Ke3 {[%clk
0:00:05]} 77... Ne5 {[%clk 0:00:11.2]} 78. Nd4+ {[%clk 0:00:05.4]} 78... Kb6
{[%clk 0:00:10.6]} 79. b5 {[%clk 0:00:05.1]} 79... Nc4+ {[%clk 0:00:10.6]} 80.
Ke4 {[%clk 0:00:04.8]} 80... Na3 {[%clk 0:00:10.6]} 81. Kd5 {[%clk 0:00:04.9]}
81... Nb1 {[%clk 0:00:06.2]} 82. Rg6+ {[%clk 0:00:04]} 82... Kb7 {[%clk
0:00:06.4]} 83. Rg7+ {[%clk 0:00:03.6]} 83... Kb6 {[%clk 0:00:06.3]} 84. Rg6+
{[%clk 0:00:03.9]} 84... Kb7 {[%clk 0:00:06.6]} 85. b6 {[%clk 0:00:04.1]} 85...
Nc3+ {[%clk 0:00:06.2]} 86. Kc4 {[%clk 0:00:05]} 86... Ne4 {[%clk 0:00:05.9]}
87. Nb5 {[%clk 0:00:04.3]} 87... Nd2+ {[%clk 0:00:05]} 88. Kd3 {[%clk 0:00:04]}
88... Ne4 {[%clk 0:00:05.9]} 89. Kxe4 {[%clk 0:00:03.3]} 89... Ka6 {[%clk
0:00:06.1]} 90. Kd5 {[%clk 0:00:03.4]} 90... Kxb5 {[%clk 0:00:05.6]} 91. b7
{[%clk 0:00:03.5]} 91... Ka5 {[%clk 0:00:06.5]} 92. b8=Q {[%clk 0:00:03.1]}
92... Ka4 {[%clk 0:00:07.4]} 93. Ra6# {[%clk 0:00:03.1]} 1-0